[Event "*** Titled Tuesday 3|2 Blitz"]
[Site "Chess.com"]
[Date "2017.03.07"]
[Round "3"]
[White "Andrejkin"]
[Black "P0ubelle"]
[Result "1-0"]
[WhiteElo "2242"]
[BlackElo "2043"]
[TimeControl "180+2"]
[EndTime "13:36:39 PST"]
[Termination "Andrejkin won by resignation"]

1. d4 {[%clk 0:03:02]} 1... Nf6 {[%clk 0:02:58.1]} 2. c4 {[%clk 0:03:02]} 2...
g6 {[%clk 0:02:58.9]} 3. Nf3 {[%clk 0:03:01.6]} 3... Bg7 {[%clk 0:02:59.9]} 4.
Nc3 {[%clk 0:03:01.6]} 4... O-O {[%clk 0:02:59.8]} 5. e4 {[%clk 0:03:01.7]} 5...
d6 {[%clk 0:03:00.7]} 6. h3 {[%clk 0:02:56.5]} 6... e5 {[%clk 0:02:40]} 7. d5
{[%clk 0:02:55.9]} 7... Nbd7 {[%clk 0:02:35.4]} 8. Bg5 {[%clk 0:02:52.6]} 8...
a6 {[%clk 0:02:29.1]} 9. Nd2 {[%clk 0:02:49.8]} 9... Kh8 {[%clk 0:02:29.2]} 10.
Be2 {[%clk 0:02:47.7]} 10... Qe8 {[%clk 0:02:29.9]} 11. b4 {[%clk 0:02:45.1]}
11... Ng8 {[%clk 0:02:29.6]} 12. O-O {[%clk 0:02:42.6]} 12... f5 {[%clk
0:02:30]} 13. exf5 {[%clk 0:02:41.1]} 13... Rxf5 {[%clk 0:02:30.4]} 14. Nde4
{[%clk 0:02:38.8]} 14... Ndf6 {[%clk 0:02:29.2]} 15. c5 {[%clk 0:02:32.6]} 15...
Nxe4 {[%clk 0:02:19.8]} 16. Nxe4 {[%clk 0:02:32.4]} 16... Nf6 {[%clk 0:02:09.9]}
17. Bxf6 {[%clk 0:02:30.5]} 17... Rxf6 {[%clk 0:02:01.3]} 18. Nxf6 {[%clk
0:02:30]} 18... Bxf6 {[%clk 0:02:03.2]} 19. Rc1 {[%clk 0:02:21.2]} 19... Be7
{[%clk 0:02:02.2]} 20. Bg4 {[%clk 0:02:05.4]} 20... Qf7 {[%clk 0:01:54.4]} 21.
Bxc8 {[%clk 0:02:03.5]} 21... Rxc8 {[%clk 0:01:55.4]} 22. f4 {[%clk 0:02:00.4]}
22... exf4 {[%clk 0:01:55.5]} 23. Qd4+ {[%clk 0:01:58.6]} 23... Qg7 {[%clk
0:01:49.7]} 24. Qxf4 {[%clk 0:01:56.7]} 24... Rf8 {[%clk 0:01:48.6]} 25. Qg3
{[%clk 0:01:47.7]} 25... Qd4+ {[%clk 0:01:39.2]} 26. Kh1 {[%clk 0:01:45.4]}
26... Rxf1+ {[%clk 0:01:31]} 27. Rxf1 {[%clk 0:01:47.3]} 27... Qxd5 {[%clk
0:01:31.5]} 28. Qe1 {[%clk 0:01:45.8]} 28... Qe5 {[%clk 0:01:23.4]} 29. Qxe5+
{[%clk 0:01:44.7]} 29... dxe5 {[%clk 0:01:25.3]} 30. Rf7 {[%clk 0:01:45.6]}
30... Bg5 {[%clk 0:01:21.3]} 31. Rxc7 {[%clk 0:01:45.2]} 31... e4 {[%clk
0:01:22.7]} 32. Rxb7 {[%clk 0:01:42.6]} 32... Bh4 {[%clk 0:01:15.4]} 33. c6
{[%clk 0:01:39.9]} 33... e3 {[%clk 0:01:14.6]} 1-0

[Event "*** Titled Tuesday 3|2 Blitz"]
[Site "Chess.com"]
[Date "2017.03.07"]
[Round "3"]
[White "peteseeger"]
[Black "proxy6"]
[Result "0-1"]
[WhiteElo "2080"]
[BlackElo "2148"]
[TimeControl "180+2"]
[EndTime "13:36:50 PST"]
[Termination "proxy6 won by resignation"]

1. e4 {[%clk 0:03:02]} 1... e5 {[%clk 0:03:00.3]} 2. Nf3 {[%clk 0:03:02.4]} 2...
Nc6 {[%clk 0:03:01.8]} 3. Bc4 {[%clk 0:03:03.2]} 3... Bc5 {[%clk 0:03:01.7]} 4.
O-O {[%clk 0:03:02.4]} 4... Nf6 {[%clk 0:03:02]} 5. d3 {[%clk 0:03:02.9]} 5...
d6 {[%clk 0:02:59.9]} 6. c3 {[%clk 0:03:01.1]} 6... a6 {[%clk 0:03:00.7]} 7. Bb3
{[%clk 0:03:01.7]} 7... Ba7 {[%clk 0:03:01.4]} 8. Nbd2 {[%clk 0:03:00]} 8... O-O
{[%clk 0:03:02.1]} 9. h3 {[%clk 0:03:00.3]} 9... Ne7 {[%clk 0:02:58.3]} 10. Re1
{[%clk 0:02:58.3]} 10... Ng6 {[%clk 0:02:58.8]} 11. Nf1 {[%clk 0:02:59.2]} 11...
h6 {[%clk 0:02:59.5]} 12. Ng3 {[%clk 0:02:59.8]} 12... Re8 {[%clk 0:02:48]} 13.
d4 {[%clk 0:02:59.6]} 13... Be6 {[%clk 0:02:44]} 14. Bc2 {[%clk 0:03:00.1]}
14... c6 {[%clk 0:02:39.8]} 15. Nf5 {[%clk 0:02:52.1]} 15... Qc7 {[%clk
0:02:29.6]} 16. Nh2 {[%clk 0:02:45.5]} 16... Bxf5 {[%clk 0:02:03.7]} 17. exf5
{[%clk 0:02:45.1]} 17... Nf8 {[%clk 0:02:05.3]} 18. Be3 {[%clk 0:02:42.2]} 18...
exd4 {[%clk 0:02:01.4]} 19. cxd4 {[%clk 0:02:42]} 19... N8h7 {[%clk 0:01:56.9]}
20. Qf3 {[%clk 0:02:40.8]} 20... Nd5 {[%clk 0:01:52.7]} 21. Ng4 {[%clk
0:02:34.8]} 21... Nxe3 {[%clk 0:01:44.4]} 22. fxe3 {[%clk 0:02:34.6]} 22... f6
{[%clk 0:01:34.2]} 23. Kh1 {[%clk 0:02:30.8]} 23... d5 {[%clk 0:01:25.9]} 24.
Bb3 {[%clk 0:02:21.5]} 24... Kh8 {[%clk 0:01:23.4]} 25. Qf2 {[%clk 0:02:09.7]}
25... Bb8 {[%clk 0:01:15.9]} 26. Kg1 {[%clk 0:01:52.3]} 26... h5 {[%clk
0:01:13.5]} 27. e4 {[%clk 0:01:26]} 27... hxg4 {[%clk 0:01:12.1]} 28. e5 {[%clk
0:01:24.8]} 28... fxe5 {[%clk 0:01:10.6]} 29. dxe5 {[%clk 0:01:24.3]} 29... Ba7
{[%clk 0:01:05.2]} 0-1

[Event "*** Titled Tuesday 3|2 Blitz"]
[Site "Chess.com"]
[Date "2017.03.07"]
[Round "3"]
[White "Makalexa"]
[Black "SCIM"]
[Result "0-1"]
[WhiteElo "2118"]
[BlackElo "2316"]
[TimeControl "180+2"]
[EndTime "13:37:11 PST"]
[Termination "SCIM won by checkmate"]

1. e4 {[%clk 0:03:02]} 1... c5 {[%clk 0:02:59.5]} 2. Nf3 {[%clk 0:03:03.1]} 2...
e6 {[%clk 0:03:00.2]} 3. d4 {[%clk 0:03:04.5]} 3... cxd4 {[%clk 0:03:01.1]} 4.
Nxd4 {[%clk 0:03:06.4]} 4... Nc6 {[%clk 0:03:02.3]} 5. Nc3 {[%clk 0:03:05.9]}
5... Qc7 {[%clk 0:03:02.9]} 6. Ndb5 {[%clk 0:03:06.7]} 6... Qb8 {[%clk 0:03:02]}
7. Be3 {[%clk 0:03:08.1]} 7... a6 {[%clk 0:02:56.4]} 8. Bb6 {[%clk 0:03:08.5]}
8... axb5 {[%clk 0:02:56.9]} 9. Nxb5 {[%clk 0:03:10.4]} 9... Bb4+ {[%clk
0:02:56.9]} 10. c3 {[%clk 0:03:09.3]} 10... Ba5 {[%clk 0:02:58.1]} 11. Nc7+
{[%clk 0:03:10.1]} 11... Qxc7 {[%clk 0:02:58.5]} 12. Bxc7 {[%clk 0:03:12]} 12...
Bxc7 {[%clk 0:02:59]} 13. Qg4 {[%clk 0:03:11]} 13... g6 {[%clk 0:02:52.9]} 14.
Bb5 {[%clk 0:03:07.6]} 14... Nge7 {[%clk 0:02:47.1]} 15. O-O {[%clk 0:03:04.8]}
15... O-O {[%clk 0:02:46.7]} 16. a4 {[%clk 0:03:00.8]} 16... d5 {[%clk
0:02:44.2]} 17. exd5 {[%clk 0:02:57.6]} 17... exd5 {[%clk 0:02:37.5]} 18. Qe2
{[%clk 0:02:55.8]} 18... Be6 {[%clk 0:02:35.9]} 19. b4 {[%clk 0:02:45.2]} 19...
d4 {[%clk 0:02:32.9]} 20. Rfc1 {[%clk 0:02:14.7]} 20... dxc3 {[%clk 0:02:25.9]}
21. Rxc3 {[%clk 0:02:14.6]} 21... Be5 {[%clk 0:02:18.9]} 22. Rxc6 {[%clk
0:01:50.6]} 22... Nxc6 {[%clk 0:02:10.6]} 23. Rc1 {[%clk 0:01:22.3]} 23... Bf4
{[%clk 0:01:59.9]} 24. Rc4 {[%clk 0:01:15]} 24... Bxc4 {[%clk 0:01:57]} 25. Qxc4
{[%clk 0:01:14.4]} 25... Bd6 {[%clk 0:01:52.1]} 26. Bxc6 {[%clk 0:01:14.6]}
26... bxc6 {[%clk 0:01:52]} 27. Qxc6 {[%clk 0:01:06.5]} 27... Bxb4 {[%clk
0:01:51.8]} 28. Kf1 {[%clk 0:00:55.1]} 28... Rfc8 {[%clk 0:01:47.2]} 29. Qb5
{[%clk 0:00:54]} 29... Rab8 {[%clk 0:01:46.4]} 30. Qd7 {[%clk 0:00:51.1]} 30...
Rd8 {[%clk 0:01:37.2]} 31. Qc6 {[%clk 0:00:48.3]} 31... Rbc8 {[%clk 0:01:34.6]}
32. Qf3 {[%clk 0:00:47.3]} 32... Rc1+ {[%clk 0:01:32.9]} 33. Ke2 {[%clk
0:00:47.9]} 33... Re1# {[%clk 0:01:33.1]} 0-1

[Event "*** Titled Tuesday 3|2 Blitz"]
[Site "Chess.com"]
[Date "2017.03.07"]
[Round "3"]
[White "MatBobula"]
[Black "saraswathii"]
[Result "1-0"]
[WhiteElo "2282"]
[BlackElo "2151"]
[TimeControl "180+2"]
[EndTime "13:37:11 PST"]
[Termination "MatBobula won by resignation"]

1. d4 {[%clk 0:03:02]} 1... d5 {[%clk 0:02:57.9]} 2. c4 {[%clk 0:03:02.5]} 2...
c6 {[%clk 0:02:56.2]} 3. Nf3 {[%clk 0:03:02.5]} 3... Nf6 {[%clk 0:02:56.2]} 4.
Nc3 {[%clk 0:03:03.4]} 4... Bf5 {[%clk 0:02:56.2]} 5. cxd5 {[%clk 0:03:00.4]}
5... cxd5 {[%clk 0:02:55.5]} 6. Qb3 {[%clk 0:03:00.9]} 6... Bc8 {[%clk
0:02:45.3]} 7. Bf4 {[%clk 0:02:58.3]} 7... e6 {[%clk 0:02:39.9]} 8. e3 {[%clk
0:02:52.9]} 8... Bd6 {[%clk 0:02:35.3]} 9. Bb5+ {[%clk 0:02:47.2]} 9... Nc6
{[%clk 0:02:35.2]} 10. Ne5 {[%clk 0:02:43.3]} 10... Bxe5 {[%clk 0:02:30.9]} 11.
Bxe5 {[%clk 0:02:38.2]} 11... O-O {[%clk 0:02:29.9]} 12. Bg3 {[%clk 0:02:28.7]}
12... Bd7 {[%clk 0:02:26.8]} 13. O-O {[%clk 0:02:27.8]} 13... a6 {[%clk
0:02:27]} 14. Bd3 {[%clk 0:02:23.5]} 14... b5 {[%clk 0:02:15.4]} 15. Rac1 {[%clk
0:02:14.1]} 15... Na5 {[%clk 0:02:16]} 16. Qc2 {[%clk 0:02:12.3]} 16... Nc4
{[%clk 0:02:15.5]} 17. b3 {[%clk 0:02:10.5]} 17... Nb6 {[%clk 0:02:14.1]} 18.
Bd6 {[%clk 0:02:02]} 18... Re8 {[%clk 0:02:04.8]} 19. Bc5 {[%clk 0:02:01.4]}
19... Rc8 {[%clk 0:01:59.5]} 20. a4 {[%clk 0:01:55.5]} 20... bxa4 {[%clk
0:01:54.7]} 21. bxa4 {[%clk 0:01:51.8]} 21... a5 {[%clk 0:01:51.2]} 22. Qb3
{[%clk 0:01:38.3]} 22... Rb8 {[%clk 0:01:49]} 23. Bd6 {[%clk 0:01:30.1]} 23...
Bxa4 {[%clk 0:01:42.2]} 24. Qa3 {[%clk 0:01:27.4]} 24... Rc8 {[%clk 0:01:14]}
25. Nxa4 {[%clk 0:01:17.9]} 25... Rxc1 {[%clk 0:01:11]} 26. Rxc1 {[%clk
0:01:18.4]} 26... Nxa4 {[%clk 0:01:11.6]} 27. Bb5 {[%clk 0:01:19]} 27... Nb6
{[%clk 0:01:01.1]} 28. Bc7 {[%clk 0:01:08]} 1-0

[Event "*** Titled Tuesday 3|2 Blitz"]
[Site "Chess.com"]
[Date "2017.03.07"]
[Round "3"]
[White "GianmarcoVaR"]
[Black "jcgs1030"]
[Result "1-0"]
[WhiteElo "2419"]
[BlackElo "2299"]
[TimeControl "180+2"]
[EndTime "13:37:15 PST"]
[Termination "GianmarcoVaR won by resignation"]

1. d4 {[%clk 0:03:02]} 1... Nf6 {[%clk 0:02:59.9]} 2. Nf3 {[%clk 0:03:02.5]}
2... g6 {[%clk 0:03:00.3]} 3. Bg5 {[%clk 0:03:03.2]} 3... Ne4 {[%clk 0:02:59.4]}
4. Bh4 {[%clk 0:03:03.7]} 4... Bg7 {[%clk 0:02:59.9]} 5. c3 {[%clk 0:03:04.7]}
5... O-O {[%clk 0:02:59.2]} 6. e3 {[%clk 0:03:05.5]} 6... d5 {[%clk 0:02:58.5]}
7. Be2 {[%clk 0:03:04.8]} 7... c5 {[%clk 0:02:57.8]} 8. O-O {[%clk 0:03:05.4]}
8... Nc6 {[%clk 0:02:57.2]} 9. Nbd2 {[%clk 0:03:06]} 9... Bg4 {[%clk 0:02:55.7]}
10. Nxe4 {[%clk 0:03:00.4]} 10... dxe4 {[%clk 0:02:54.8]} 11. Nd2 {[%clk
0:03:01.3]} 11... Bxe2 {[%clk 0:02:55.7]} 12. Qxe2 {[%clk 0:03:03.2]} 12... cxd4
{[%clk 0:02:52.3]} 13. exd4 {[%clk 0:03:04.5]} 13... f5 {[%clk 0:02:51.4]} 14.
f3 {[%clk 0:03:05.3]} 14... exf3 {[%clk 0:02:48.9]} 15. Nxf3 {[%clk 0:03:06]}
15... Qb6 {[%clk 0:02:49.2]} 16. Rab1 {[%clk 0:02:09.8]} 16... e5 {[%clk
0:02:47.1]} 17. Ng5 {[%clk 0:02:08.4]} 17... exd4 {[%clk 0:02:40.7]} 18. Qc4+
{[%clk 0:02:03.7]} 18... Kh8 {[%clk 0:02:39]} 19. Nf7+ {[%clk 0:02:00.4]} 19...
Rxf7 {[%clk 0:02:37.1]} 20. Qxf7 {[%clk 0:02:01.4]} 20... dxc3+ {[%clk
0:02:27.6]} 21. Kh1 {[%clk 0:02:02.1]} 21... Ne5 {[%clk 0:02:22.9]} 22. Qe7
{[%clk 0:01:56.7]} 22... cxb2 {[%clk 0:02:01.5]} 23. h3 {[%clk 0:01:53.9]} 23...
Rc8 {[%clk 0:01:53.9]} 24. Rfd1 {[%clk 0:01:52.2]} 24... h6 {[%clk 0:01:52.2]}
25. Bg3 {[%clk 0:01:40.9]} 25... Nc6 {[%clk 0:00:49.6]} 26. Qe6 {[%clk
0:01:22.5]} 26... Na5 {[%clk 0:00:42.8]} 27. Qxc8+ {[%clk 0:01:22.7]} 27... Kh7
{[%clk 0:00:42.8]} 28. Rd7 {[%clk 0:01:20]} 28... Qe6 {[%clk 0:00:37.7]} 29.
Rxg7+ {[%clk 0:01:19.9]} 1-0

[Event "*** Titled Tuesday 3|2 Blitz"]
[Site "Chess.com"]
[Date "2017.03.07"]
[Round "3"]
[White "Rating-Schmating"]
[Black "SwiftyMcBishop"]
[Result "0-1"]
[WhiteElo "2276"]
[BlackElo "2180"]
[TimeControl "180+2"]
[EndTime "13:37:16 PST"]
[Termination "SwiftyMcBishop won by checkmate"]

1. e4 {[%clk 0:03:01.9]} 1... d5 {[%clk 0:02:59.1]} 2. exd5 {[%clk 0:03:01.1]}
2... Qxd5 {[%clk 0:02:58.9]} 3. Nc3 {[%clk 0:03:02.1]} 3... Qa5 {[%clk
0:02:58.2]} 4. g3 {[%clk 0:03:02.2]} 4... c6 {[%clk 0:02:56.1]} 5. Bg2 {[%clk
0:03:03]} 5... Nf6 {[%clk 0:02:51.9]} 6. Nge2 {[%clk 0:03:03.7]} 6... e5 {[%clk
0:02:48.9]} 7. d3 {[%clk 0:03:03.9]} 7... Be7 {[%clk 0:02:47.7]} 8. O-O {[%clk
0:03:04.6]} 8... O-O {[%clk 0:02:46.9]} 9. Be3 {[%clk 0:03:01.9]} 9... Be6
{[%clk 0:02:39.3]} 10. Ne4 {[%clk 0:03:01]} 10... Nbd7 {[%clk 0:02:34.7]} 11.
N2c3 {[%clk 0:02:59.9]} 11... Nxe4 {[%clk 0:02:33.2]} 12. dxe4 {[%clk
0:02:55.9]} 12... Nb6 {[%clk 0:02:31]} 13. Qe2 {[%clk 0:02:34.3]} 13... Bc4
{[%clk 0:02:28.5]} 14. Bxb6 {[%clk 0:02:34.6]} 14... Qa6 {[%clk 0:02:22.3]} 15.
Qg4 {[%clk 0:02:24.6]} 15... Bxf1 {[%clk 0:02:15.7]} 16. Bc7 {[%clk 0:02:20.1]}
16... Bxg2 {[%clk 0:02:13.4]} 17. Bxe5 {[%clk 0:02:17.1]} 17... f6 {[%clk
0:01:51.7]} 18. Qe6+ {[%clk 0:02:17.6]} 18... Rf7 {[%clk 0:01:45.4]} 19. Kxg2
{[%clk 0:01:52.9]} 19... fxe5 {[%clk 0:01:37.4]} 20. Rd1 {[%clk 0:01:52.5]}
20... Rf8 {[%clk 0:01:23.1]} 21. Rd7 {[%clk 0:01:50.9]} 21... Bc5 {[%clk
0:01:10.3]} 22. Rxf7 {[%clk 0:01:41.5]} 22... Rxf7 {[%clk 0:01:12.2]} 23. Qe8+
{[%clk 0:01:41.2]} 23... Rf8 {[%clk 0:01:10.1]} 24. Qe6+ {[%clk 0:01:38.2]}
24... Kh8 {[%clk 0:01:11.2]} 25. Qxe5 {[%clk 0:01:27.2]} 25... Rxf2+ {[%clk
0:01:08.6]} 26. Kh3 {[%clk 0:01:28.1]} 26... Qf1+ {[%clk 0:01:04.4]} 27. Kh4
{[%clk 0:01:28]} 27... Rxh2+ {[%clk 0:00:59.9]} 28. Kg4 {[%clk 0:01:26.7]} 28...
Qh3+ {[%clk 0:00:51.6]} 29. Kf4 {[%clk 0:01:26.5]} 29... Rf2+ {[%clk 0:00:51.3]}
30. Kg5 {[%clk 0:01:27.8]} 30... Be3+ {[%clk 0:00:52.4]} 31. Qf4 {[%clk
0:01:26.6]} 31... Bxf4+ {[%clk 0:00:53.6]} 32. gxf4 {[%clk 0:01:27.5]} 32... h6+
{[%clk 0:00:51.3]} 33. Kg6 {[%clk 0:01:28.2]} 33... Rxf4 {[%clk 0:00:52.8]} 34.
Nd5 {[%clk 0:01:27]} 34... cxd5 {[%clk 0:00:53.3]} 35. e5 {[%clk 0:01:27.9]}
35... Qf5# {[%clk 0:00:54.2]} 0-1

[Event "*** Titled Tuesday 3|2 Blitz"]
[Site "Chess.com"]
[Date "2017.03.07"]
[Round "3"]
[White "platy3"]
[Black "chessking2151"]
[Result "1-0"]
[WhiteElo "2580"]
[BlackElo "2381"]
[TimeControl "180+2"]
[EndTime "13:37:29 PST"]
[Termination "platy3 won by resignation"]

1. e4 {[%clk 0:03:02]} 1... e5 {[%clk 0:03:00.1]} 2. Nf3 {[%clk 0:03:03]} 2...
Nc6 {[%clk 0:03:00.5]} 3. Bb5 {[%clk 0:03:04.5]} 3... f5 {[%clk 0:03:01.2]} 4.
Nc3 {[%clk 0:03:03.7]} 4... fxe4 {[%clk 0:03:01.6]} 5. Nxe4 {[%clk 0:03:04.3]}
5... Nf6 {[%clk 0:03:01.7]} 6. Qe2 {[%clk 0:02:58.8]} 6... d5 {[%clk 0:03:00.7]}
7. Nxf6+ {[%clk 0:02:58.8]} 7... gxf6 {[%clk 0:03:01.5]} 8. d4 {[%clk
0:03:00.4]} 8... Bg7 {[%clk 0:03:01.9]} 9. dxe5 {[%clk 0:03:01.3]} 9... O-O
{[%clk 0:03:03]} 10. e6 {[%clk 0:03:01]} 10... Ne5 {[%clk 0:03:01.5]} 11. O-O
{[%clk 0:02:59.8]} 11... c6 {[%clk 0:02:57.8]} 12. Bd3 {[%clk 0:02:58.4]} 12...
Re8 {[%clk 0:02:55.4]} 13. Nxe5 {[%clk 0:02:33.9]} 13... fxe5 {[%clk 0:02:48.2]}
14. Qh5 {[%clk 0:02:34.6]} 14... e4 {[%clk 0:02:44.6]} 15. Bg5 {[%clk
0:02:33.7]} 15... Bxe6 {[%clk 0:02:18.4]} 16. Bxd8 {[%clk 0:02:33.5]} 16...
Raxd8 {[%clk 0:02:19]} 17. Be2 {[%clk 0:02:31.3]} 17... Bf7 {[%clk 0:02:16.7]}
18. Qh3 {[%clk 0:02:30.4]} 18... Kh8 {[%clk 0:02:13.3]} 19. Bh5 {[%clk
0:02:30.2]} 19... Be6 {[%clk 0:02:12.6]} 20. Bg4 {[%clk 0:02:25.8]} 20... Bg8
{[%clk 0:02:10.1]} 21. c3 {[%clk 0:02:24.8]} 21... Rf8 {[%clk 0:02:10.1]} 22.
Rad1 {[%clk 0:02:23.1]} 22... Rd6 {[%clk 0:02:10.7]} 23. Qe3 {[%clk 0:02:12.2]}
23... b6 {[%clk 0:02:07.4]} 24. f3 {[%clk 0:02:04.1]} 24... Bh6 {[%clk
0:01:59.4]} 25. Qd4+ {[%clk 0:01:53.1]} 25... Bg7 {[%clk 0:01:58.6]} 26. Qd2
{[%clk 0:01:46.5]} 26... Bh6 {[%clk 0:01:55.9]} 27. Qe2 {[%clk 0:01:46.7]} 27...
e3 {[%clk 0:01:54.3]} 28. f4 {[%clk 0:01:25.4]} 28... Re8 {[%clk 0:01:47.6]} 29.
Rf3 {[%clk 0:01:23]} 29... Bf8 {[%clk 0:01:24.1]} 30. Rxe3 {[%clk 0:01:18.6]}
30... Rxe3 {[%clk 0:01:24.6]} 31. Qxe3 {[%clk 0:01:19.3]} 31... Rg6 {[%clk
0:01:25.3]} 32. Qf3 {[%clk 0:01:11.3]} 32... Bc5+ {[%clk 0:01:22.6]} 33. Kh1
{[%clk 0:01:08.6]} 33... Rf6 {[%clk 0:01:22.9]} 34. Re1 {[%clk 0:01:07.6]} 34...
Bf7 {[%clk 0:01:23.2]} 35. Bh5 {[%clk 0:01:07.1]} 35... Bg8 {[%clk 0:01:23.9]}
36. Re8 {[%clk 0:01:07]} 36... Bf8 {[%clk 0:01:12.1]} 37. Qg4 {[%clk 0:01:05.9]}
1-0

[Event "*** Titled Tuesday 3|2 Blitz"]
[Site "Chess.com"]
[Date "2017.03.07"]
[Round "3"]
[White "RoelandPruijssers"]
[Black "IMcoach"]
[Result "1-0"]
[WhiteElo "2502"]
[BlackElo "2314"]
[TimeControl "180+2"]
[EndTime "13:37:32 PST"]
[Termination "RoelandPruijssers won on time"]

1. e4 {[%clk 0:03:00.8]} 1... c5 {[%clk 0:02:57.9]} 2. Nf3 {[%clk 0:03:01.4]}
2... d6 {[%clk 0:02:58.9]} 3. d4 {[%clk 0:03:01.4]} 3... cxd4 {[%clk 0:02:59.9]}
4. Nxd4 {[%clk 0:03:03]} 4... Nf6 {[%clk 0:03:00.8]} 5. Nc3 {[%clk 0:03:04.2]}
5... a6 {[%clk 0:03:02.2]} 6. Be3 {[%clk 0:03:04.8]} 6... h5 {[%clk 0:02:55.6]}
7. a4 {[%clk 0:02:52.1]} 7... Nbd7 {[%clk 0:02:43.6]} 8. Nb3 {[%clk 0:02:38.7]}
8... g6 {[%clk 0:02:30.5]} 9. f4 {[%clk 0:02:33.7]} 9... b6 {[%clk 0:02:20.3]}
10. Bd3 {[%clk 0:02:33.8]} 10... Bb7 {[%clk 0:02:21.3]} 11. O-O {[%clk
0:02:27.1]} 11... Bg7 {[%clk 0:02:13.5]} 12. Qe2 {[%clk 0:02:18.4]} 12... Qc7
{[%clk 0:02:10.6]} 13. Rae1 {[%clk 0:02:12.6]} 13... h4 {[%clk 0:02:05.2]} 14.
Bd2 {[%clk 0:01:51.1]} 14... Rh5 {[%clk 0:02:03.3]} 15. h3 {[%clk 0:01:45.2]}
15... Kf8 {[%clk 0:01:54.2]} 16. Kh2 {[%clk 0:01:38.6]} 16... Kg8 {[%clk
0:01:46.6]} 17. Qf2 {[%clk 0:01:28.6]} 17... Bh6 {[%clk 0:01:36.3]} 18. Be2
{[%clk 0:01:22]} 18... Nxe4 {[%clk 0:00:13.7]} 19. Nxe4 {[%clk 0:01:20.6]} 19...
Bxe4 {[%clk 0:00:15.6]} 20. Bxh5 {[%clk 0:01:19.2]} 20... Bxc2 {[%clk
0:00:12.5]} 21. Bf3 {[%clk 0:01:11.6]} 21... Bxb3 {[%clk 0:00:12.8]} 22. Bxa8
{[%clk 0:01:11.4]} 1-0

[Event "*** Titled Tuesday 3|2 Blitz"]
[Site "Chess.com"]
[Date "2017.03.07"]
[Round "3"]
[White "Incognito_Knight"]
[Black "Grebeniuk-S"]
[Result "1-0"]
[WhiteElo "2394"]
[BlackElo "2426"]
[TimeControl "180+2"]
[EndTime "13:37:35 PST"]
[Termination "Incognito_Knight won by resignation"]

1. e4 {[%clk 0:03:02]} 1... d5 {[%clk 0:03:00.9]} 2. exd5 {[%clk 0:03:00.3]}
2... Qxd5 {[%clk 0:03:02.8]} 3. Nc3 {[%clk 0:03:01.2]} 3... Qa5 {[%clk
0:03:03.9]} 4. d4 {[%clk 0:03:02.2]} 4... Nf6 {[%clk 0:03:05.1]} 5. Bc4 {[%clk
0:03:00.7]} 5... c6 {[%clk 0:03:04.2]} 6. Nf3 {[%clk 0:03:00.9]} 6... Bg4 {[%clk
0:03:04.8]} 7. h3 {[%clk 0:02:57.2]} 7... Bxf3 {[%clk 0:02:58.3]} 8. Qxf3 {[%clk
0:02:59.1]} 8... Nbd7 {[%clk 0:02:58.3]} 9. O-O {[%clk 0:02:57.3]} 9... e6
{[%clk 0:02:59.1]} 10. Bf4 {[%clk 0:02:53.4]} 10... Be7 {[%clk 0:02:52.6]} 11.
Rfe1 {[%clk 0:02:53.8]} 11... O-O {[%clk 0:02:53]} 12. a3 {[%clk 0:02:50]} 12...
Rfe8 {[%clk 0:02:52.5]} 13. Rad1 {[%clk 0:02:47.3]} 13... Qh5 {[%clk 0:02:34.7]}
14. g4 {[%clk 0:02:41.7]} 14... Qa5 {[%clk 0:02:34.9]} 15. Bd3 {[%clk
0:02:26.7]} 15... h6 {[%clk 0:02:30.4]} 16. Ne2 {[%clk 0:02:18.3]} 16... Qd5
{[%clk 0:02:23.4]} 17. Qe3 {[%clk 0:02:09.6]} 17... Qa2 {[%clk 0:02:22.1]} 18.
c4 {[%clk 0:02:05.9]} 18... Qxb2 {[%clk 0:02:09.1]} 19. Rb1 {[%clk 0:02:03.8]}
19... Qxa3 {[%clk 0:02:10.2]} 20. Rxb7 {[%clk 0:01:54.8]} 20... Rab8 {[%clk
0:02:01.4]} 21. Bxb8 {[%clk 0:01:53.1]} 21... Rxb8 {[%clk 0:02:00.4]} 22. Rxb8+
{[%clk 0:01:44.1]} 22... Nxb8 {[%clk 0:02:02.3]} 23. Rb1 {[%clk 0:01:45.5]}
23... Nbd7 {[%clk 0:01:59.1]} 24. Nf4 {[%clk 0:01:36.5]} 24... Bd6 {[%clk
0:01:46.9]} 25. c5 {[%clk 0:01:37.7]} 25... Bxf4 {[%clk 0:01:23]} 26. Bh7+
{[%clk 0:01:38.2]} 26... Kxh7 {[%clk 0:01:22.3]} 27. Qxa3 {[%clk 0:01:39.1]}
27... e5 {[%clk 0:01:20.7]} 28. Qa4 {[%clk 0:01:28.5]} 28... exd4 {[%clk
0:01:16.6]} 29. Qxc6 {[%clk 0:01:29.5]} 29... Ne5 {[%clk 0:01:14.6]} 30. Qa4
{[%clk 0:01:12.4]} 30... Nd5 {[%clk 0:01:08.6]} 31. Kg2 {[%clk 0:01:04.2]} 31...
d3 {[%clk 0:01:03.6]} 32. Qe4+ {[%clk 0:01:03.3]} 1-0